bitfinex-derivatives/quotes_SOLF0:USTF0_20241002
["timestamp","ask_amount","ask_price","bid_price","bid_amount"]
[1727894952886,3.482,143.6,143.57,3.4826]
[1727894953092,6.48,143.62,143.55,26.74]
[1727894953281,3.4821,143.6,143.55,26.74]
[1727894953483,6.48,143.62,143.55,26.74]
[1727894953780,6.48,143.62,143.54,6.48]
[1727894954576,3.4824,143.59,143.56,3.483]
[1727894955189,6.48,143.62,143.54,6.48]
[1727894955784,3.4828,143.57,143.55,3.4831]
[1727894955983,6.48,143.62,143.54,6.48]
[1727894956189,7.7817,143.62,143.54,6.48]
[1727894956391,3.4829,143.57,143.54,9.9634]
[1727894957385,7.7817,143.62,143.54,6.48]
[1727894957586,3.483,143.56,143.54,6.48]
[1727894957797,3.483,143.56,143.53,3.4836]
[1727894958489,3.4828,143.57,143.54,3.4835]
[1727894960294,7.7817,143.62,143.54,3.4835]
[1727894960486,3.483,143.56,143.54,3.4835]
[1727894960905,7.7817,143.62,143.54,3.4835]
[1727894962696,3.4827,143.57,143.54,3.4835]
[1727894963000,3.4827,143.57,143.51,6.60502]
[1727894963001,3.40693786,143.6,143.51,0.12502]
[1727894963189,1.3257,143.59,143.51,0.12502]
[1727894963503,6.48,143.58,143.51,0.12502]
[1727894963696,3.4831,143.56,143.53,3.4836]
[1727894964002,6.48,143.58,143.51,0.12502]
[1727894964496,3.4835,143.55,143.51,3.60902]
[1727894964691,3.4835,143.55,143.51,0.12502]
[1727894964898,6.48,143.58,143.51,0.12502]
[1727894964899,3.4831,143.56,143.51,0.12502]
[1727894965200,21.18917961,143.76,143.52,26.74]
[1727894965201,6.48,143.6,143.52,26.74]
[1727894965397,28.24972,143.63,143.56,3.4829]
[1727894965593,6.48,143.61,143.52,26.74]
[1727894966100,3.4827,143.58,143.55,3.4831]
[1727894966400,3.4827,143.58,143.53,6.48]
[1727894966589,6.48,143.61,143.53,6.48]
[1727894966898,3.4829,143.57,143.53,6.48]
[1727894967101,3.4829,143.57,143.54,3.4833]
[1727894967397,3.4829,143.57,143.53,6.48]
[1727894967706,6.48,143.61,143.53,6.48]
[1727894968202,3.4829,143.57,143.54,3.4834]
[1727894969408,7.98972,143.63,143.53,6.48]
[1727894969701,18.0217,143.62,143.53,23.2]
[1727894970003,3.4827,143.58,143.55,3.4831]
[1727894970199,18.0217,143.62,143.53,23.2]
[1727894971010,3.4829,143.57,143.54,3.4833]
[1727894971492,3.4831,143.56,143.53,9.9635]
[1727894971692,3.4831,143.56,143.53,6.48]
[1727894971899,16.72,143.61,143.53,6.48]
[1727894972089,3.4824,143.59,143.55,3.4831]
[1727894972299,16.72,143.61,143.55,3.4831]
[1727894972698,3.4826,143.58,143.55,3.4831]
[1727894972901,1.3017,143.62,143.57,3.4827]
[1727894973196,3.4825,143.58,143.53,23.2]
[1727894973394,1.3017,143.62,143.53,23.2]
[1727894973594,3.4822,143.6,143.53,23.2]
[1727894973797,1.3017,143.62,143.53,23.2]
[1727894974095,1.3017,143.62,143.56,3.4828]
[1727894974290,1.3017,143.62,143.53,23.2]
[1727894974496,1.3017,143.62,143.57,3.4827]
[1727894975004,3.4824,143.59,143.57,3.4827]
[1727894975600,3.4824,143.59,143.56,3.4829]
[1727894975906,1.3017,143.62,143.56,3.4829]
[1727894975907,3.4825,143.58,143.56,3.4829]
[1727894976798,3.4829,143.57,143.54,3.4833]
[1727894977190,3.4832,143.55,143.53,23.2]
[1727894977393,3.4832,143.55,143.51,16.84502]
[1727894977803,3.4832,143.55,143.52,3.4838]
[1727894977998,10.0090885,143.59,143.52,3.4838]
[1727894978393,10.0090885,143.59,143.51,16.84502]
[1727894978598,10.0090885,143.59,143.53,3.4837]
[1727894979006,3.4831,143.56,143.53,3.4837]
[1727894979206,6.48,143.59,143.53,3.4837]
[1727894979407,6.48,143.59,143.52,3.4838]
[1727894979601,3.4838,143.53,143.51,0.12502]
[1727894979902,26.69669237,143.59,143.51,0.12502]
[1727894980403,26.69669237,143.59,143.51,3.60922]
[1727894980706,6.48,143.6,143.53,16.72]
[1727894980903,6.48,143.6,143.55,3.4832]
[1727894981300,3.4824,143.59,143.53,16.72]
[1727894981601,3.4824,143.59,143.57,3.4827]
[1727894981805,3.482,143.6,143.55,16.72]
[1727894982100,1.50972,143.63,143.58,3.4824]
[1727894982101,0.12502,143.63,143.58,3.4824]
[1727894982408,3.482,143.61,143.58,3.4824]
[1727894982598,0.12502,143.63,143.58,3.4824]
[1727894983691,3.4822,143.6,143.55,16.72]
[1727894983897,3.4822,143.6,143.57,3.4826]
[1727894984101,0.12502,143.63,143.55,16.72]
[1727894984307,16.84502,143.63,143.55,16.72]
[1727894984798,3.4825,143.59,143.56,3.483]
[1727894985592,3.482,143.61,143.55,16.72]
[1727894985804,0.12502,143.63,143.57,16.72]
[1727894986107,0.12502,143.63,143.61,16.72]
[1727894986808,0.12502,143.63,143.62,3.4815]
[1727894987512,3.60632,143.63,143.61,20.2017]
[1727894987802,0.12502,143.63,143.61,16.72]
[1727894988207,0.12502,143.63,143.62,3.4815]
[1727894988409,0.12502,143.63,143.61,16.72]
[1727894988808,0.12502,143.63,143.61,20.2016]
[1727894990308,3.60632,143.63,143.61,20.2016]
[1727894991015,0.12502,143.63,143.61,20.2016]
[1727894991808,0.12502,143.63,143.58,20.8085]
[1727894992114,0.12502,143.63,143.61,3.4818]
[1727894995307,3.60632,143.63,143.61,3.4818]
[1727894995915,0.12502,143.63,143.58,20.8085]
[1727894996117,0.12502,143.63,143.58,4.0885]
[1727894996512,3.4819,143.61,143.58,7.5709]
[1727894996713,0.12502,143.63,143.58,4.0885]
[1727894997320,0.12502,143.63,143.58,7.5709]
[1727894998112,3.4819,143.61,143.58,7.5709]
[1727894998435,0.12502,143.63,143.58,2.7574]
[1727894998600,3.4824,143.59,143.57,9.9426]
[1727894998801,0.12502,143.63,143.54,4.1923]
[1727894999013,16.72,143.62,143.54,10.6523]
[1727894999214,3.4829,143.57,143.54,10.6523]
[1727894999507,16.72,143.62,143.54,4.1923]
[1727894999715,3.51103837,143.61,143.54,4.1923]
[1727895000312,16.72,143.62,143.54,4.1923]
[1727895000507,0.12502,143.63,143.55,16.72]
[1727895001114,16.84502,143.63,143.54,4.1923]
[1727895002011,16.72,143.61,143.51,16.84502]
[1727895002213,16.72,143.59,143.51,16.84502]
[1727895002609,3.4838,143.53,143.51,16.84502]
[1727895002809,16.72,143.59,143.51,16.84502]
[1727895003112,3.4836,143.54,143.51,20.32902]
[1727895003521,20.14402285,143.59,143.51,20.32902]
[1727895004206,20.14402285,143.59,143.51,16.84502]
[1727895005121,3.4838,143.53,143.51,20.32912]
[1727895005311,3.4838,143.53,143.51,0.12502]
[1727895005622,3.484,143.52,143.51,0.12502]
[1727895006814,3.484,143.52,143.45,0.62502]
[1727895006815,3.4854,143.46,143.45,0.62502]
[1727895007414,6.9641,143.6,143.45,17.34502]
[1727895007722,3.62139681,143.57,143.47,16.72]
[1727895008016,0.12502,143.57,143.49,16.72]
[1727895008217,3.4832,143.56,143.49,20.1721321]
[1727895008423,0.12502,143.57,143.53,16.72]
[1727895008809,3.4834,143.55,143.52,3.484]
[1727895009013,0.12502,143.57,143.51,16.72]
[1727895009825,0.12502,143.57,143.53,16.72]
[1727895010015,0.12502,143.57,143.54,1.2908]
[1727895010322,0.12502,143.57,143.55,3.483]
[1727895010823,0.12502,143.57,143.54,1.2908]
[1727895010824,3.483,143.56,143.54,1.2908]
[1727895011324,3.4832,143.55,143.51,20.2041]
[1727895011510,3.4832,143.55,143.45,17.34502]
[1727895011511,26.85420489,143.57,143.5,1.3605]
[1727895011828,3.4838,143.53,143.5,4.8448]
[1727895012022,26.77931288,143.57,143.5,1.3605]
[1727895012413,3.4847,143.5,143.46,20.2054]
[1727895012923,23.18,143.53,143.45,0.62502]
[1727895013433,3.4854,143.47,143.45,0.62502]
[1727895013822,23.18,143.53,143.45,0.62502]
[1727895014018,3.4854,143.46,143.45,0.62502]
[1727895015733,6.46,143.49,143.45,0.62502]
[1727895016339,16.72,143.51,143.45,0.62502]
[1727895016533,3.4851,143.48,143.45,0.62502]
[1727895016728,23.18,143.51,143.45,0.62502]
[1727895017130,3.4853,143.47,143.45,0.62502]
[1727895017335,23.18,143.51,143.45,4.11062]
[1727895018340,23.18,143.51,143.45,0.62502]
[1727895018936,3.4851,143.48,143.45,4.11062]
[1727895019143,23.18,143.51,143.45,0.62502]
[1727895019443,16.72,143.5,143.45,0.62502]
[1727895019741,3.4854,143.46,143.45,0.62502]
[1727895020437,3.4853,143.47,143.45,0.62502]
[1727895020640,24.4985,143.55,143.45,17.34502]
[1727895021241,16.72,143.52,143.45,0.62502]
[1727895021437,6.46,143.51,143.45,0.62502]
[1727895021643,3.4854,143.46,143.45,0.62502]
[1727895023849,1.2756,143.48,143.45,0.62502]
[1727895023850,9.945,143.48,143.45,0.62502]
[1727895024051,18.0612,143.5,143.45,0.62502]
[1727895024345,3.4848,143.49,143.46,3.4853]
[1727895024735,24.5212,143.5,143.45,4.11062]
[1727895025145,24.5212,143.5,143.45,0.62502]
[1727895025445,24.5212,143.5,143.46,3.4854]
[1727895025446,3.4848,143.49,143.46,3.4854]
[1727895025643,17.9956,143.52,143.45,0.62502]
[1727895025945,6.46,143.53,143.45,17.34502]
[1727895026345,3.4844,143.51,143.48,3.4848]
[1727895026542,6.46,143.53,143.48,3.4848]
[1727895026743,3.4843,143.51,143.45,17.34502]
[1727895026943,6.46,143.53,143.49,3.4845]
[1727895027244,3.4842,143.52,143.49,3.4845]
[1727895027442,6.46,143.53,143.48,3.4848]
[1727895027638,6.46,143.53,143.45,17.34502]
[1727895027834,3.4846,143.5,143.45,17.34502]
[1727895028037,6.46,143.53,143.47,3.485]
[1727895028237,93.3513,143.54,143.47,3.485]
[1727895028460,3.4846,143.5,143.47,3.485]
[1727895028841,16.72,143.5,143.45,0.62502]
[1727895029345,9.89858915,143.49,143.45,0.62502]
[1727895029545,3.4854,143.46,143.45,0.62502]
[1727895030444,16.72,143.5,143.45,0.62502]
[1727895030644,6.46,143.49,143.45,0.62502]
[1727895030850,23.18,143.5,143.45,0.62502]
[1727895031048,3.4851,143.48,143.45,4.11052]
[1727895031348,23.18,143.5,143.45,4.11052]
[1727895031548,3.56615084,143.49,143.45,0.62502]
[1727895031743,3.4854,143.46,143.45,0.62502]
[1727895032135,3.485,143.48,143.45,4.11062]
[1727895032344,6.46,143.5,143.45,0.62502]
[1727895032749,1.0,143.49,143.45,0.62502]
[1727895032948,1.0,143.49,143.45,17.34502]
[1727895033343,1.0,143.49,143.47,3.485]
[1727895033547,1.0,143.49,143.45,17.34502]
[1727895033748,1.0,143.49,143.48,3.4849]
[1727895034751,1.0,143.49,143.48,20.2049]
[1727895034953,0.12502,143.57,143.53,3.4836]
[1727895034954,6.58502,143.57,143.53,3.4836]
[1727895035362,6.58502,143.57,143.54,3.4833]
[1727895035663,6.58502,143.57,143.54,16.72]
[1727895035664,0.12502,143.57,143.54,16.72]
[1727895036152,0.12502,143.57,143.55,3.4832]
[1727895036554,0.12502,143.57,143.53,6.46]
[1727895036750,0.12502,143.57,143.52,16.72]
[1727895037058,0.12502,143.57,143.52,23.18]
[1727895037853,0.12502,143.57,143.54,16.72]
[1727895038049,0.12502,143.57,143.56,3.483]
[1727895041358,0.12502,143.57,143.55,3.4832]
[1727895041858,0.12502,143.57,143.54,18.0611]
[1727895042058,0.12502,143.57,143.53,1.3875]
[1727895043156,0.12502,143.57,143.56,3.483]
[1727895045770,0.12502,143.57,143.55,3.4831]
[1727895045968,0.12502,143.57,143.53,1.3875]
[1727895046170,3.483,143.56,143.53,1.3875]
[1727895046385,3.483,143.56,143.53,4.8712]
[1727895046684,0.12502,143.57,143.53,1.3875]
[1727895046872,0.12502,143.57,143.53,4.871]
[1727895047273,3.4831,143.56,143.53,4.871]
[1727895047984,3.4831,143.56,143.54,3.4834]
[1727895049573,3.4832,143.55,143.53,4.8711]
[1727895049776,3.4832,143.55,143.52,16.72]
[1727895049978,0.12502,143.57,143.5,16.72]
[1727895050189,3.484,143.53,143.5,9.9444]
[1727895050397,10.06871792,143.57,143.48,24.4829]
[1727895050687,3.4842,143.51,143.48,27.9676]
[1727895050880,11.38491792,143.57,143.48,24.4829]
[1727895051976,3.4839,143.53,143.5,3.4843]
[1727895052688,3.4834,143.55,143.52,3.4838]
[1727895053179,7.90122,143.57,143.48,24.4829]
[1727895053180,3.4831,143.56,143.54,3.4834]
[1727895053379,0.12502,143.57,143.52,16.72]
[1727895053575,0.12502,143.57,143.52,23.18]
[1727895053780,0.12502,143.57,143.52,6.46]
[1727895054283,0.12502,143.57,143.54,3.4833]
[1727895055089,3.4831,143.56,143.53,3.4837]
[1727895055386,3.4831,143.56,143.52,6.46]
[1727895056287,3.4831,143.56,143.54,3.4834]
[1727895056988,0.12502,143.57,143.54,3.4834]
[1727895057197,3.60792,143.57,143.54,3.4834]
[1727895059283,0.12502,143.57,143.55,3.483]
[1727895059890,0.12502,143.57,143.56,3.483]
[1727895060594,0.12502,143.57,143.55,1.3282]
[1727895061393,0.12502,143.57,143.56,3.483]
[1727895062591,3.60772,143.57,143.55,4.8114]
[1727895062792,0.12502,143.57,143.55,1.3282]
[1727895063388,0.12502,143.57,143.56,20.203]
[1727895063588,0.12502,143.63,143.56,16.72]
[1727895063792,0.12502,143.63,143.58,3.4825]
[1727895063793,3.4819,143.61,143.58,3.4825]
[1727895064287,3.4817,143.62,143.59,3.4821]
[1727895064487,0.12502,143.63,143.58,16.72]
[1727895064792,3.4815,143.62,143.59,3.4821]
[1727895065390,3.4815,143.62,143.59,3.4822]
[1727895065704,3.4821,143.6,143.56,23.18]
[1727895065887,0.12502,143.63,143.56,23.18]
[1727895066189,3.4819,143.61,143.58,3.4823]
[1727895066410,0.12502,143.63,143.56,16.72]
[1727895066596,16.72,143.61,143.55,1.3282]
[1727895067390,3.4829,143.57,143.55,1.3282]
[1727895067585,3.4829,143.57,143.54,9.9433]
[1727895068081,18.19262,143.63,143.54,6.46]
[1727895068493,18.19262,143.63,143.55,3.4831]
[1727895068704,3.4826,143.58,143.55,3.4831]
[1727895069396,3.4828,143.57,143.55,3.4831]
[1727895069693,3.43514906,143.61,143.53,10.5211]
[1727895069900,3.4832,143.56,143.53,7.8495]
[1727895070290,6.46,143.6,143.53,11.3331]
[1727895070494,3.4825,143.58,143.53,11.3331]
[1727895070697,6.46,143.6,143.53,11.3331]
[1727895071191,6.46,143.6,143.53,7.8495]
[1727895071383,16.72,143.59,143.48,18.1313]
[1727895071585,16.72,143.57,143.48,1.4113]
[1727895071786,3.484,143.52,143.48,1.4113]
[1727895074391,3.4837,143.53,143.48,1.4113]
[1727895074597,2.6953,143.55,143.48,1.4113]
[1727895075106,2.6953,143.55,143.48,18.1313]
[1727895075399,6.44,143.56,143.51,3.60902]
[1727895076295,1.3734,143.59,143.51,0.12502]
[1727895076497,7.8134,143.59,143.53,3.4837]
[1727895076887,3.4832,143.56,143.53,3.4837]
[1727895077493,4.4832,143.55,143.53,3.4837]
[1727895078005,1.0,143.55,143.54,3.4835]
[1727895078295,1.0,143.55,143.52,16.72]
[1727895078504,3.4836,143.54,143.52,16.72]
[1727895078687,3.4836,143.54,143.51,10.04902]
[1727895079400,1.0,143.55,143.53,3.4836]
[1727895079601,1.0,143.55,143.52,16.72]
[1727895079803,1.0,143.55,143.51,6.56502]
[1727895080104,3.4837,143.54,143.51,10.04912]
[1727895080395,1.0,143.55,143.51,0.12502]
[1727895080902,3.484,143.52,143.51,0.12502]
[1727895081701,3.4854,143.46,143.45,0.62502]
[1727895083795,3.4861,143.43,143.42,0.5]
[1727895084192,3.4866,143.41,143.4,0.62518]
[1727895085699,3.4865,143.42,143.4,0.62518]
[1727895086194,6.44,143.43,143.4,0.62518]
[1727895086395,6.44,143.46,143.4,0.62518]
[1727895086598,6.44,143.46,143.41,3.4866]
[1727895086799,3.4857,143.45,143.41,3.4866]
[1727895087010,6.44,143.46,143.4,0.62518]
[1727895087212,6.44,143.46,143.4,4.11198]
[1727895087503,3.4861,143.44,143.4,4.11198]
[1727895087890,6.44,143.46,143.4,0.62518]
[1727895088491,3.4866,143.42,143.4,0.62518]
[1727895088692,6.44,143.46,143.4,0.62518]
[1727895088693,33.21,143.46,143.4,0.62518]
[1727895089108,3.4866,143.41,143.4,0.62518]
[1727895089295,6.44,143.46,143.4,0.62518]
[1727895090707,3.4859,143.45,143.4,0.62518]
[1727895090900,6.44,143.46,143.4,0.62518]
[1727895091405,3.4866,143.41,143.4,0.62518]
[1727895094509,3.4865,143.42,143.4,0.62518]
[1727895094705,6.44,143.43,143.4,0.62518]
[1727895095008,3.4866,143.41,143.4,0.62518]
[1727895095815,6.44,143.43,143.4,0.62518]
[1727895096106,28.1175,143.47,143.4,0.62518]
[1727895096308,6.44,143.46,143.4,0.62518]
[1727895097407,3.4859,143.44,143.4,0.62518]
[1727895097612,6.44,143.46,143.4,0.62518]
[1727895097809,3.486,143.44,143.4,4.11188]
[1727895098115,6.44,143.46,143.4,0.62518]
[1727895098606,3.486,143.44,143.41,3.4865]
[1727895099008,6.44,143.46,143.4,0.62518]
[1727895099407,6.44,143.46,143.4,4.11188]
[1727895099601,6.44,143.46,143.4,0.62518]
[1727895100114,3.4861,143.44,143.41,3.4866]
[1727895100410,6.44,143.46,143.4,0.62518]
[1727895101007,3.4861,143.44,143.4,4.11188]
[1727895101213,3.4861,143.44,143.4,0.62518]
[1727895101411,6.44,143.46,143.4,0.62518]
[1727895101607,30.31843205,143.52,143.4,27.39518]
[1727895101804,6.44,143.49,143.41,2.6914]
[1727895102212,3.4853,143.47,143.41,2.6914]
[1727895102713,3.4853,143.47,143.44,3.4858]
[1727895103101,3.4858,143.45,143.41,2.6914]
[1727895103307,3.4858,143.45,143.42,3.4862]
[1727895103712,6.44,143.49,143.42,3.4862]
[1727895104116,3.4858,143.45,143.41,2.6914]
[1727895104316,3.4858,143.45,143.43,3.4861]
[1727895104512,6.44,143.49,143.41,2.6914]
[1727895104721,16.73,143.48,143.41,1.3598]
[1727895105015,18.0309,143.48,143.4,4.11188]
[1727895105215,3.4864,143.42,143.4,0.62518]
[1727895105514,6.44,143.45,143.4,0.62518]
[1727895106409,3.4866,143.41,143.4,0.62518]
[1727895107212,3.4865,143.42,143.4,0.62518]
[1727895109713,3.4866,143.41,143.4,0.62518]
[1727895112322,9.9266,143.41,143.4,0.62518]
[1727895113319,6.44,143.41,143.39,0.12502]
[1727895113623,6.44,143.41,143.37,0.5]
[1727895114019,3.4874,143.38,143.37,0.5]
[1727895117015,3.4878,143.36,143.35,0.5]
[1727895117218,33.22,143.36,143.33,0.12502]
[1727895117417,1.3192,143.35,143.33,0.12502]
[1727895117620,3.4883,143.34,143.33,0.12502]
[1727895118113,26.78,143.4,143.33,0.12502]
[1727895118313,6.44,143.39,143.33,0.12502]
[1727895119125,6.44,143.39,143.33,26.90502]
[1727895119322,6.44,143.42,143.33,26.90502]
[1727895119722,3.53177094,143.44,143.35,26.78]
[1727895119924,6.44,143.43,143.35,26.78]
[1727895120420,6.44,143.43,143.38,3.4872]
[1727895120623,6.44,143.43,143.36,7.7682]
[1727895120817,1.0,143.4,143.38,3.4873]
[1727895123418,1.0,143.4,143.36,9.0619]
[1727895123624,1.0,143.4,143.33,6.56502]
[1727895124019,3.4874,143.38,143.34,3.4881]
[1727895124528,3.4874,143.38,143.33,6.56502]
[1727895124723,3.4874,143.38,143.35,3.488]
[1727895125423,1.0,143.4,143.34,3.4882]
[1727895125424,3.4876,143.37,143.34,3.4882]
[1727895125632,1.0,143.4,143.33,0.12502]
[1727895125825,26.78,143.35,143.27,0.62502]
[1727895126021,33.6,143.34,143.27,0.62502]
[1727895126221,26.78,143.34,143.27,0.62502]
[1727895126424,3.4888,143.32,143.27,0.62502]
[1727895127529,16.75,143.32,143.27,0.62502]
[1727895127725,6.82,143.33,143.27,0.62502]
[1727895128124,3.4889,143.32,143.27,0.62502]
[1727895128524,6.82,143.33,143.27,0.62502]
[1727895128817,16.75,143.32,143.27,0.62502]
[1727895130031,16.75,143.34,143.27,0.62502]
[1727895130228,3.4891,143.31,143.27,0.62502]
[1727895130432,6.82,143.33,143.27,0.62502]
[1727895130433,16.75,143.32,143.27,0.62502]
[1727895130623,18.0424,143.32,143.27,0.62502]
[1727895130930,6.82,143.33,143.27,0.62502]
[1727895131433,16.75,143.35,143.27,0.62502]
[1727895131434,6.82,143.32,143.27,0.62502]
[1727895132023,3.4895,143.3,143.27,0.62502]
[1727895133429,3.4889,143.32,143.27,0.62502]
[1727895133630,6.82,143.32,143.27,0.62502]
[1727895134033,3.4891,143.31,143.27,0.62502]
[1727895134227,6.82,143.32,143.27,0.62502]
[1727895134730,16.75,143.35,143.27,0.62502]
[1727895134922,6.84,143.33,143.27,0.62502]
[1727895135124,6.84,143.33,143.27,4.11502]
[1727895135528,6.84,143.35,143.29,3.4893]
[1727895135728,6.84,143.35,143.27,0.62502]
[1727895135937,18.0879,143.37,143.27,0.62502]
[1727895136140,3.4888,143.33,143.28,3.4896]
[1727895136433,6.84,143.36,143.27,0.62502]
[1727895136624,16.75,143.35,143.27,0.62502]
[1727895136819,3.4893,143.31,143.27,0.62502]
[1727895138141,3.4898,143.28,143.27,0.62502]
[1727895138433,23.59,143.31,143.27,0.62502]
[1727895138733,3.4898,143.28,143.27,0.62502]
[1727895140229,3.4896,143.29,143.27,0.62502]
[1727895140534,24.9112,143.31,143.27,0.62502]
[1727895141931,3.4898,143.28,143.27,0.62502]
[1727895142737,3.4903,143.26,143.25,0.5]
[1727895146550,27.6542,143.31,143.25,0.5]
[1727895147041,3.4903,143.26,143.25,0.5]
[1727895147837,3.4901,143.27,143.25,0.5]
[1727895148040,23.59,143.3,143.25,0.5]
[1727895148447,3.49,143.28,143.25,3.9905]
[1727895149036,3.49,143.28,143.25,0.5]
[1727895149435,3.4901,143.27,143.25,0.5]
[1727895150034,3.4899,143.28,143.25,0.5]
[1727895150248,16.75,143.3,143.25,0.5]
[1727895150646,3.4903,143.26,143.25,0.5]
[1727895151040,16.75,143.3,143.25,0.5]
[1727895151240,3.4902,143.27,143.25,0.5]
[1727895152253,16.75,143.3,143.25,0.5]
[1727895152450,1.3212,143.31,143.25,0.5]
[1727895152451,8.1612,143.31,143.25,0.5]
[1727895152748,16.75,143.3,143.25,3.9904]
[1727895152952,16.75,143.3,143.25,0.5]
[1727895153249,3.4899,143.28,143.25,0.5]
[1727895153747,3.4901,143.27,143.25,0.5]
[1727895153941,0.5,143.65,143.25,0.5]
[1727895154144,16.75,143.35,143.26,19.3155]
[1727895154346,3.4885,143.34,143.28,16.75]
[1727895154545,114.38172494,143.37,143.28,23.59]
[1727895154844,114.38172494,143.37,143.3,3.4892]
[1727895154845,3.61372,143.33,143.3,3.4892]
[1727895155752,0.12502,143.33,143.28,11.6353]
[1727895156053,3.4892,143.31,143.28,8.1456]
[1727895156549,3.4892,143.31,143.28,10.3297]
[1727895156752,3.4894,143.3,143.28,6.84]
[1727895157440,3.4892,143.31,143.28,6.84]
[1727895157637,0.12502,143.33,143.3,3.4893]
[1727895157851,0.12502,143.33,143.28,6.84]
[1727895158053,0.12502,143.33,143.31,3.4889]
[1727895158548,3.61372,143.33,143.3,3.4892]
[1727895158750,0.12502,143.33,143.28,6.84]
[1727895160051,3.489,143.32,143.29,3.4895]
[1727895160947,0.12502,143.33,143.28,6.84]
[1727895161146,3.61372,143.33,143.28,6.84]
[1727895161546,3.61372,143.33,143.29,3.4894]
[1727895162552,3.4888,143.32,143.29,3.4894]
[1727895165554,0.12502,143.33,143.28,23.59]
[1727895165761,0.12502,143.33,143.3,16.75]
[1727895165959,1.12502,143.39,143.32,16.75]
[1727895166253,1.12502,143.39,143.33,8.0648]
[1727895166444,1.12502,143.39,143.34,6.72]
[1727895166651,3.4876,143.37,143.35,3.4881]
[1727895167655,3.4876,143.37,143.34,3.4882]
[1727895167860,3.4875,143.38,143.33,1.3448]
[1727895168160,3.4875,143.38,143.35,3.488]
[1727895168554,0.12502,143.39,143.35,3.488]
[1727895168754,3.4877,143.37,143.34,3.4882]
[1727895169363,3.4877,143.37,143.33,1.3448]
[1727895169562,3.4877,143.37,143.35,3.488]
[1727895169762,3.4877,143.37,143.33,1.3448]
[1727895169959,3.4874,143.38,143.35,3.4879]
[1727895170460,0.12502,143.39,143.33,1.3448]
[1727895170461,3.4877,143.37,143.33,1.3448]
[1727895170654,3.4877,143.37,143.34,3.4882]
[1727895170951,0.12502,143.39,143.33,1.3448]
[1727895171155,0.12502,143.39,143.37,3.4875]
[1727895172855,0.12502,143.39,143.38,3.4874]
[1727895173358,0.12502,143.39,143.37,3.4875]
[1727895174167,0.12502,143.39,143.36,3.4877]
[1727895174661,3.61222,143.39,143.36,3.4877]
[1727895174966,0.12502,143.39,143.33,1.3448]
[1727895175169,3.4882,143.35,143.3,24.8087]
[1727895175364,0.12502,143.39,143.3,24.8087]
[1727895175672,16.75,143.38,143.3,24.8087]
[1727895175863,3.4887,143.33,143.3,24.8087]
[1727895176263,3.4887,143.33,143.31,3.489]
[1727895176772,3.4884,143.34,143.31,3.489]
[1727895177264,16.75,143.38,143.33,3.4886]
[1727895177769,3.488,143.36,143.33,3.4886]
[1727895178172,3.488,143.36,143.3,24.8087]
[1727895178367,3.4878,143.37,143.32,16.75]